bitfinex/quotes_ETHUSD_20241018
["timestamp","ask_amount","ask_price","bid_price","bid_amount"]
[1729216925231,0.07558408,2646.0,2645.2,3.78033]
[1729216925454,0.07558408,2646.0,2645.3,3.78017]
[1729216925630,0.07558408,2646.0,2645.2,3.78033]
[1729216925845,5.42021,2646.1,2645.5,3.77997]
[1729216926051,0.01,2646.1,2645.5,3.77997]
[1729216926246,1.6556,2646.4,2645.6,3.77983]
[1729216926578,3.86421408,2646.5,2645.7,3.77962]
[1729216926946,0.07558408,2646.5,2645.9,3.77934]
[1729216927142,3.85390408,2646.7,2646.1,3.77914]
[1729216927343,2.07302794,2646.8,2646.2,3.77891]
[1729216927344,2.14861202,2646.8,2646.2,3.77891]
[1729216927558,0.41742794,2646.8,2646.0,4.5243]
[1729216927880,3.77882,2646.4,2645.7,3.77961]
[1729216928182,3.7785,2646.6,2645.9,3.7793]
[1729216928376,3.7785,2646.6,2646.0,3.7792]
[1729216928672,3.7785,2646.6,2645.7,0.55]
[1729216928673,3.77869,2646.5,2645.8,3.77954]
[1729216928830,3.85408408,2646.6,2645.9,3.77941]
[1729216929037,0.38740841,2646.5,2645.9,3.77941]
[1729216929232,0.38740841,2646.5,2645.7,4.32963]
[1729216929441,0.38740841,2646.5,2645.9,3.77935]
[1729216930476,3.79813,2646.9,2646.3,3.77876]
[1729216930643,3.77818,2646.8,2646.1,3.77903]
[1729216930839,0.08558408,2646.7,2645.9,3.77934]
[1729216931066,3.78852,2646.6,2645.7,3.77966]
[1729216931238,3.78852,2646.6,2645.9,3.77935]
[1729216931440,0.379852,2646.5,2645.9,3.77931]
[1729216931671,4.158462,2646.5,2645.9,3.77931]
[1729216931985,3.79795,2647.0,2646.3,3.77882]
[1729216932281,0.01,2647.0,2646.3,5.35986]
[1729216932465,0.01,2647.0,2646.5,3.77856]
[1729216932648,0.01,2647.4,2646.7,3.77815]
[1729216932649,3.79737,2647.4,2646.7,3.77815]
[1729216932853,0.07558408,2647.3,2646.5,3.77847]
[1729216933208,3.77761,2647.2,2646.5,3.77847]
[1729216933352,3.77761,2647.2,2646.3,5.35994]
[1729216933353,3.77794,2647.0,2646.3,5.35994]
[1729216933766,7.55589,2647.0,2646.3,5.35994]
[1729216933971,0.09558408,2647.1,2646.4,3.77869]
[1729216934157,0.09558408,2647.1,2646.3,1.5811]
[1729216934158,0.08558408,2647.1,2646.3,1.5811]
[1729216934351,3.77809,2646.9,2646.3,1.5811]
[1729216934838,3.77795,2647.0,2646.3,1.5811]
[1729216935075,3.77795,2647.0,2646.3,5.35988]
[1729216935309,3.77816,2646.8,2646.3,1.5811]
[1729216935467,3.77816,2646.8,2646.0,1.5933]
[1729216935468,3.77844,2646.6,2646.0,1.5933]
[1729216936302,3.77844,2646.6,2646.0,5.3725]
[1729216936609,0.377816,2646.7,2646.0,5.3725]
[1729216936610,0.377816,2646.7,2646.1,3.77904]
[1729216936793,0.377816,2646.7,2646.0,5.37246]
[1729216936794,3.77793,2647.0,2646.3,3.77882]
[1729216936991,3.78793,2647.0,2646.3,3.77877]
[1729216937186,8.49479641,2647.0,2646.3,3.77877]
[1729216937365,4.71684641,2647.0,2646.3,3.77877]
[1729216937571,1.638,2646.9,2645.9,4.5087]
[1729216937802,0.93891641,2647.0,2646.2,3.77898]
[1729216938008,3.77802,2646.9,2646.2,3.77889]
[1729216938269,4.63604405,2646.9,2646.2,3.77889]
[1729216939408,4.63604405,2646.9,2645.9,4.5087]
[1729216939409,3.77845,2646.6,2645.9,4.5087]
[1729216939593,3.77841,2646.7,2646.0,3.77924]
[1729216939802,3.77847,2646.6,2646.0,3.77924]
[1729216940338,5.30267,2646.6,2645.9,1.5087]
[1729216940513,3.77902,2646.2,2645.6,1.665]
[1729216940718,3.77929,2646.0,2645.6,1.665]
[1729216940927,3.77929,2646.0,2645.0,13.78065]
[1729216940928,0.01,2646.0,2645.0,13.78065]
[1729216941277,3.77986,2645.6,2645.0,10.0]
[1729216941779,7.55984,2645.6,2645.0,13.78069]
[1729216942117,3.77986,2645.6,2645.0,13.78069]
[1729216942489,3.77911,2646.2,2645.6,3.77976]
[1729216942569,3.77911,2646.2,2645.1,4.33057]
[1729216942570,3.7791,2646.2,2645.4,9.22515]
[1729216942780,3.77975,2645.7,2645.1,4.6448]
[1729216943025,3.86478408,2646.1,2645.3,3.78017]
[1729216943358,4.31689841,2646.2,2645.5,3.77988]
[1729216943473,3.77901,2646.2,2645.5,3.77988]
[1729216943676,3.77891,2646.3,2645.5,3.77988]
[1729216943677,3.77918,2646.1,2645.5,3.77988]
[1729216943923,3.77918,2646.1,2645.5,7.5598]
[1729216944222,3.77918,2646.1,2645.3,3.7802]
[1729216944223,3.77952,2645.9,2645.3,3.7802]
[1729216944413,3.77952,2645.9,2645.4,3.78013]
[1729216944576,7.55904,2645.9,2645.3,3.7802]
[1729216944782,3.77986,2645.6,2645.1,5.42528]
[1729216945012,3.77986,2645.6,2645.1,1.6448]
[1729216945396,3.77986,2645.6,2645.0,10.0]
[1729216945397,4.157846,2645.6,2645.0,10.0]
[1729216946002,4.157846,2645.6,2645.0,13.78062]
[1729216946203,4.157846,2645.6,2645.1,3.78056]
[1729216946416,3.77986,2645.6,2645.1,3.78056]
[1729216947011,3.78932,2646.0,2645.3,3.78026]
[1729216947196,3.77951,2645.9,2645.3,3.78026]
[1729216947601,3.77951,2645.9,2645.3,3.78021]
[1729216947742,5.30037,2646.2,2645.6,3.77984]
[1729216947896,3.77917,2646.1,2645.5,1.5784]
[1729216948100,3.77945,2645.9,2645.2,5.37772]
[1729216948402,0.08558408,2646.1,2645.2,5.37765]
[1729216948403,3.77938,2646.0,2645.2,5.37765]
[1729216948638,7.5588,2646.0,2645.3,3.78028]
[1729216948814,3.77938,2646.0,2645.3,3.78028]
[1729216949046,3.85501408,2645.9,2645.2,5.37772]
[1729216949347,3.77946,2645.9,2645.3,3.78019]
[1729216949540,3.77943,2645.9,2645.3,3.78019]
[1729216949750,3.77943,2645.9,2645.4,3.78014]
[1729216949942,0.07558408,2646.1,2645.7,3.77971]
[1729216950149,3.77884,2646.4,2645.7,4.310721]
[1729216950360,3.78895,2646.3,2645.7,4.310721]
[1729216950501,3.77911,2646.2,2645.5,9.091]
[1729216950755,3.77911,2646.2,2645.5,5.31108]
[1729216951012,3.77911,2646.2,2645.6,3.77982]
[1729216951218,3.78894,2646.3,2645.6,3.77982]
[1729216951649,3.77904,2646.2,2645.6,3.77982]
[1729216951816,3.77894,2646.3,2645.7,3.7797]
[1729216952540,3.77894,2646.3,2645.5,5.31113]
[1729216952541,3.779,2646.2,2645.5,5.31113]
[1729216952731,3.77894,2646.3,2645.5,5.31113]
[1729216952732,3.77894,2646.3,2645.5,5.31108]
[1729216952903,7.55791,2646.3,2645.7,3.7797]
[1729216953109,0.08558408,2646.4,2645.7,3.7797]
[1729216953400,7.56735,2646.5,2645.8,0.07558049]
[1729216953401,3.77903,2646.2,2645.8,0.07558049]
[1729216953599,3.77896,2646.3,2645.7,3.7797]
[1729216953870,3.77896,2646.3,2645.7,3.77964]
[1729216954221,3.85429408,2646.4,2645.7,3.77964]
[1729216954450,0.01,2646.3,2645.5,1.5312]
[1729216954754,0.01,2646.3,2645.3,3.78026]
[1729216954755,3.7895,2645.9,2645.3,3.78026]
[1729216954925,3.86508408,2645.9,2645.3,3.78026]
[1729216955329,3.7796,2645.8,2645.3,3.7802]
[1729216955548,0.08558408,2646.1,2645.5,3.77999]
[1729216955748,3.77881,2646.4,2645.6,3.85543823]
[1729216955960,5.3484,2646.5,2645.8,5.38985]
[1729216956241,0.08558408,2646.7,2646.2,3.779]
[1729216956242,0.01,2646.7,2646.2,3.779]
[1729216956469,9.11631,2646.8,2646.2,3.779]
[1729216956470,1.5598,2646.8,2646.4,3.77864]
[1729216956653,0.07558408,2647.0,2646.5,1.6104]
[1729216956862,3.78774,2647.1,2646.5,1.68596153]
[1729216957171,3.7875,2647.3,2646.6,3.77834]
[1729216957172,3.87308408,2647.3,2646.6,3.77834]
[1729216957317,3.87308408,2647.3,2646.5,1.6104]
[1729216957318,1.63538408,2647.4,2646.5,5.38884]
[1729216957521,7.56506,2647.3,2646.7,3.77828]
[1729216957833,3.77757,2647.2,2646.6,3.7783]
[1729216958145,3.77762,2647.2,2646.7,3.77828]
[1729216958357,3.77762,2647.2,2646.6,3.77841]
[1729216958513,3.77801,2646.9,2646.5,1.6104]
[1729216958850,0.01,2646.8,2646.3,3.77877]
[1729216959079,3.78825,2646.8,2646.3,0.530107]
[1729216959346,3.78825,2646.8,2646.1,3.77908]
[1729216959347,5.41445,2646.8,2646.1,3.77908]
[1729216959550,5.41445,2646.8,2646.2,3.77899]
[1729216959762,3.77845,2646.6,2646.0,1.5197]
[1729216959960,3.77845,2646.6,2645.9,3.77934]
[1729216959961,3.77894,2646.3,2645.7,5.29937]
[1729216960259,3.77882,2646.4,2645.8,3.77947]
[1729216960454,3.86416408,2646.5,2645.9,3.77934]
[1729216960606,3.86416408,2646.5,2645.9,7.55866]
[1729216960803,0.08558408,2646.5,2645.9,3.77932]
[1729216961599,3.7888,2646.4,2645.7,5.29934]
[1729216961771,5.32579,2646.2,2645.6,3.77976]
[1729216962093,5.32579,2646.2,2645.4,5.36115]
[1729216962094,3.7893,2646.0,2645.4,5.36115]
[1729216962301,3.7793,2646.0,2645.4,9.14121]
[1729216962484,5.32578,2646.2,2645.4,5.36115]
[1729216962657,3.7893,2646.0,2645.4,6.0182969]
[1729216962857,0.01,2646.0,2645.6,3.77984]
[1729216963062,3.7893,2646.0,2645.4,6.0182969]
[1729216963350,3.7893,2646.0,2645.0,10.0]
[1729216963351,3.78975,2645.7,2645.1,3.78048]
[1729216963604,3.78947,2645.9,2645.3,3.78017]
[1729216963906,3.86505408,2645.9,2645.3,3.78019]
[1729216964102,3.86505408,2645.9,2645.3,7.56039]
[1729216964330,3.77938,2646.0,2645.5,3.77996]
[1729216964463,5.32578,2646.2,2645.6,4.23335563]
[1729216964658,5.32578,2646.2,2645.4,1.5549]
[1729216964659,5.40136408,2646.2,2645.4,5.33501]
[1729216964879,5.40136408,2646.2,2645.1,1.5549]
[1729216964880,3.77989,2645.6,2645.1,1.5549]
[1729216965287,3.78984,2645.7,2645.1,1.5549]
[1729216965487,3.79014,2645.5,2645.0,10.0]
[1729216965691,7.57028,2645.5,2645.0,10.0]
[1729216965899,3.78016,2645.4,2645.0,10.0]
[1729216966178,3.78057,2645.1,2645.0,10.0]
[1729216966377,4.76481408,2645.4,2645.0,10.0]
[1729216966704,3.78047,2645.2,2645.0,10.0]
[1729216966984,3.79057,2645.1,2645.0,10.0]
[1729216967723,6.17561649,2645.1,2645.0,10.0]
[1729216969304,11.2024167,2645.1,2645.0,10.0]
[1729216969635,11.12683262,2645.1,2645.0,10.0]
[1729216969795,14.13683262,2645.1,2645.0,8.10964]
[1729216970126,14.13683262,2645.1,2645.0,9.18e-06]
[1729216970127,14.67683262,2645.1,2645.0,9.18e-06]
[1729216970430,9.11003241,2645.1,2645.0,9.18e-06]
[1729216970812,14.13683262,2645.1,2645.0,9.18e-06]
[1729216970990,14.70683262,2645.1,2645.0,9.18e-06]
[1729216971178,14.13683262,2645.1,2645.0,9.18e-06]
[1729216971917,14.72914741,2645.1,2645.0,9.18e-06]
[1729216972325,9.11003241,2645.1,2645.0,9.18e-06]
[1729216972541,14.13683262,2645.1,2645.0,9.18e-06]
[1729216974056,6.11003241,2645.1,2645.0,9.18e-06]
[1729216974193,5.41995408,2645.1,2645.0,9.18e-06]
[1729216974840,0.02,2645.1,2645.0,9.18e-06]
[1729216975039,0.01,2645.3,2645.0,9.18e-06]
[1729216975236,0.08558408,2645.4,2645.0,9.18e-06]
[1729216975449,3.7901,2645.5,2645.0,9.18e-06]
[1729216975738,3.85574408,2645.4,2645.0,9.18e-06]
[1729216975941,3.78057,2645.1,2645.0,9.18e-06]
[1729216976238,3.79051,2645.2,2645.0,9.18e-06]
[1729216976444,3.78057,2645.1,2645.0,9.18e-06]
[1729216976735,3.79051,2645.2,2645.0,9.18e-06]
[1729216977499,3.85615408,2645.1,2645.0,9.18e-06]
[1729216977695,0.07558408,2645.1,2645.0,9.18e-06]
[1729216977921,0.01,2645.3,2645.0,9.18e-06]
[1729216979303,3.79033,2645.3,2645.0,9.18e-06]
[1729216979500,3.79048,2645.2,2645.0,9.18e-06]
[1729216979697,0.01,2645.2,2645.0,9.18e-06]
[1729216981153,0.01,2645.3,2645.0,9.18e-06]
[1729216981352,7.57098,2645.2,2645.0,9.18e-06]
[1729216981561,7.571,2645.2,2645.0,9.18e-06]
[1729216981849,3.79044,2645.2,2645.0,9.18e-06]
[1729216982058,7.57101,2645.2,2645.0,9.18e-06]
[1729216982223,3.79044,2645.2,2645.0,9.18e-06]
[1729216982427,0.01,2645.3,2645.0,9.18e-06]
[1729216982428,0.08558408,2645.3,2645.0,9.18e-06]
[1729216982630,0.01,2645.2,2645.0,9.18e-06]
[1729216982936,3.79045,2645.2,2645.0,9.18e-06]
[1729216983249,0.01,2645.2,2645.0,9.18e-06]
[1729216983439,0.01,2645.3,2645.0,9.18e-06]
[1729216983862,0.08558408,2645.3,2645.0,9.18e-06]
[1729216984238,0.01,2645.8,2645.3,5.30959]
[1729216984551,3.86494408,2646.0,2645.3,5.30959]
[1729216984552,0.01,2646.0,2645.4,0.07559531]
[1729216984720,3.7993,2646.0,2645.5,3.77989]
[1729216985058,3.7993,2646.0,2645.3,5.840559]
[1729216985059,3.7993,2646.0,2645.3,9.620709]
[1729216985263,3.7993,2646.0,2645.3,5.840509]
[1729216985476,3.78007,2645.5,2645.0,9.18e-06]
[1729216985651,0.01,2645.6,2645.1,3.78049]
[1729216987025,0.07558408,2645.7,2645.1,3.78048]
[1729216987258,0.02,2646.0,2645.5,3.77989]
[1729216987730,0.02,2646.0,2645.3,5.34473]
[1729216987930,0.01,2645.2,2645.0,9.18e-06]
[1729216988155,3.80055,2645.2,2645.0,9.18e-06]
[1729216988466,0.02,2645.2,2645.0,9.18e-06]
[1729216992565,0.07558408,2645.6,2645.1,3.78057]
[1729216992566,0.01,2645.5,2645.1,3.78057]
[1729216992973,0.01,2645.5,2645.1,3.78048]
[1729216993470,0.01,2645.4,2645.1,3.78048]
[1729216994491,0.01,2645.2,2645.0,9.18e-06]
[1729216994655,1.5944,2645.1,2645.0,9.18e-06]
[1729216995003,2.14045441,2645.1,2645.0,9.18e-06]
[1729216995272,5.92102441,2645.1,2645.0,9.18e-06]
[1729216995473,2.14045441,2645.1,2645.0,9.18e-06]
[1729216995633,1.5944,2645.1,2645.0,9.18e-06]
[1729216995832,1.66998408,2645.1,2645.0,9.18e-06]
[1729216996592,5.45055408,2645.1,2645.0,9.18e-06]
[1729216996862,5.37497,2645.1,2645.0,9.18e-06]
[1729216997191,5.45055408,2645.1,2645.0,9.18e-06]
[1729216997332,6.80320472,2645.1,2645.0,9.18e-06]
[1729216997845,3.02263472,2645.1,2645.0,9.18e-06]
[1729216998046,5.45055408,2645.1,2645.0,9.18e-06]
[1729216999167,9.69874644,2645.1,2645.0,9.18e-06]
[1729216999364,9.62316236,2645.1,2645.0,9.18e-06]
[1729216999754,13.18316236,2645.1,2645.0,9.18e-06]
[1729217000259,24.03505836,2645.1,2645.0,9.18e-06]
[1729217000473,25.1741542,2645.1,2645.0,9.18e-06]
[1729217000976,15.9667112,2645.1,2645.0,9.18e-06]
[1729217001300,0.01,2643.3,2642.8,3.78386]
[1729217001483,0.01,2643.3,2642.4,1.5659]
[1729217001484,0.01,2642.9,2642.4,5.35023]
[1729217001645,0.01,2642.9,2642.4,1.5659]
[1729217001834,0.01,2642.9,2642.7,3.78398]
[1729217002092,0.01,2642.9,2642.7,4.540737]
[1729217002342,0.01,2643.0,2642.8,3.78386]
[1729217002573,0.01,2643.1,2642.9,3.78372]
[1729217002773,0.01,2643.2,2643.0,3.78357]
[1729217003078,0.01,2643.2,2642.7,3.78389]
[1729217003079,0.08558408,2643.2,2642.7,3.78389]
[1729217003415,0.01,2643.0,2642.7,3.78389]
[1729217003532,0.07558408,2643.2,2642.7,4.540702]
[1729217003740,0.02,2643.3,2642.9,3.78358]
[1729217003937,0.02,2643.3,2642.7,3.78392]
[1729217003938,0.01,2643.0,2642.7,3.78392]
[1729217004884,0.01,2643.0,2642.7,7.56783]
[1729217005248,0.01,2643.0,2642.7,3.78391]
[1729217005984,0.01,2643.1,2642.8,3.78378]
[1729217006180,0.01,2643.2,2642.9,3.78363]
[1729217006388,0.01,2643.1,2642.9,3.78363]
[1729217006806,0.01,2643.3,2642.9,3.78362]
[1729217007012,0.01,2643.3,2643.2,3.78329]
[1729217007166,0.01,2643.3,2642.6,4.28539236]
[1729217007167,0.01,2643.2,2642.6,5.3743]
[1729217007356,0.01,2643.1,2642.6,9.15834]
[1729217007556,0.01,2643.1,2642.4,3.78435]
[1729217007557,3.79363,2643.0,2642.4,3.78435]
[1729217007768,0.07558408,2642.9,2642.5,3.78425]
[1729217008278,0.01,2643.0,2642.6,3.78404]
[1729217008279,0.08558408,2643.0,2642.6,3.78404]
[1729217008587,0.01,2643.0,2642.8,3.78377]
[1729217008804,0.01,2643.2,2642.9,1.5205]
[1729217009153,0.01,2643.2,2643.0,3.78357]
[1729217009349,0.01,2643.1,2643.0,3.78357]
[1729217009688,0.01,2643.1,2642.9,1.5205]
[1729217010500,0.01,2643.1,2642.6,3.7841]
[1729217011373,0.01,2643.1,2642.7,3.78399]
[1729217011893,0.01,2643.1,2642.8,3.78385]
[1729217013661,0.01,2643.3,2643.0,3.78354]
[1729217013870,0.01,2643.3,2642.8,7.56751]
[1729217014092,0.01,2643.3,2642.8,4.43614254]
[1729217014333,0.01,2643.6,2643.2,3.78316]
[1729217014488,0.01,2643.5,2643.2,3.78316]
[1729217015314,0.01,2643.5,2643.0,5.36394]
[1729217015485,0.01,2643.2,2642.6,5.44205]
[1729217015815,0.08558408,2643.2,2642.6,1.658]
[1729217016075,0.01,2643.1,2642.6,1.658]
[1729217016337,0.08558408,2643.2,2642.3,5.4425]
[1729217016338,3.79377,2642.9,2642.3,5.4425]
[1729217016652,0.01,2642.4,2641.9,3.78506]
[1729217016996,0.01,2642.3,2641.9,3.78506]
[1729217017195,0.01,2642.3,2641.7,9.22876]
[1729217017519,0.01,2642.3,2641.7,5.44334]
[1729217018228,0.01,2642.3,2641.7,9.22868]
[1729217018395,0.01,2642.3,2641.8,3.78519]
[1729217018720,0.01,2642.3,2641.7,5.44334]
[1729217018933,0.01,2642.3,2641.7,2.202334]
[1729217019084,0.01,2642.3,2642.1,3.78477]
[1729217019293,0.09558408,2642.6,2642.1,3.78477]
[1729217019486,0.01,2642.4,2642.1,3.78477]
[1729217019792,0.01,2642.3,2642.1,3.78477]
[1729217020180,0.01,2642.3,2641.9,3.78507]
[1729217020181,0.02,2642.3,2641.7,2.202334]
[1729217020395,0.02,2642.3,2642.2,3.78472]
[1729217020396,0.01,2642.3,2642.2,3.78472]
[1729217020624,0.01,2642.5,2642.2,3.78472]
[1729217020824,0.01,2642.3,2642.2,3.78472]
[1729217021024,3.78386,2642.8,2642.1,0.55]
[1729217021025,0.01,2642.8,2642.1,0.55]
[1729217021209,0.01,2642.8,2642.4,3.78435]
[1729217021532,0.01,2642.8,2642.4,3.78433]
[1729217021772,0.01,2642.8,2642.2,5.38339]
[1729217021990,0.01,2642.8,2642.3,3.7845]
[1729217023416,0.01,2642.3,2641.9,3.78506]
[1729217023603,1.5766,2642.4,2642.1,3.78476]
[1729217023898,1.5766,2642.4,2642.0,7.56981]
[1729217024048,1.5766,2642.4,2642.0,3.78489]
[1729217024238,1.5766,2642.4,2642.0,7.56981]
[1729217024466,1.5766,2642.4,2642.0,3.78489]
[1729217024707,0.01,2642.4,2642.2,3.78471]
[1729217024981,0.01,2642.4,2642.1,3.78483]
[1729217025338,0.01,2642.6,2642.3,3.78458]
[1729217025549,0.01,2642.6,2642.2,3.78463]
[1729217025845,0.01,2642.4,2642.0,3.78493]
[1729217026289,0.01,2642.4,2641.9,3.78513]
[1729217026459,0.01,2642.4,2641.8,3.78523]
[1729217026659,3.7946,2642.3,2641.6,3.78548]
[1729217026863,0.01,2642.2,2641.7,3.78535]
[1729217027608,0.01,2642.2,2641.3,0.46265062]
[1729217027609,0.01,2641.9,2641.3,0.46265062]
[1729217027771,1.5426,2641.6,2641.3,0.46265062]
[1729217028089,0.01,2641.4,2641.3,0.46265062]
[1729217028276,3.87145408,2641.4,2641.3,0.46265062]
[1729217028473,0.08558408,2641.4,2641.3,0.46265062]
[1729217029297,0.01,2641.4,2641.3,0.46265062]
[1729217030981,0.01,2641.5,2641.3,0.46265062]
[1729217031196,0.01,2641.4,2641.3,0.46265062]
[1729217032082,3.87145408,2641.4,2641.3,0.46265062]
[1729217032289,4.79243649,2641.4,2641.3,0.46265062]
[1729217032867,1.5922,2641.3,2640.9,0.47600307]
[1729217033050,4.79243649,2641.4,2640.4,0.48935552]
[1729217033051,5.39936,2640.5,2640.4,0.48935552]
[1729217033250,6.82212032,2640.5,2640.4,0.48935552]
[1729217038109,1.68778408,2640.5,2640.4,0.48935552]
[1729217038308,1.6122,2640.5,2640.4,0.48935552]
[1729217039215,0.02,2640.5,2640.4,0.48935552]
[1729217039415,0.07558408,2640.6,2640.4,0.48935552]
[1729217039614,0.09558408,2640.7,2640.4,0.48935552]
[1729217039912,3.88255408,2640.7,2640.4,0.48935552]
[1729217040076,0.02,2640.7,2640.4,0.48935552]
[1729217040408,0.01,2640.6,2640.4,4.27654552]
[1729217040631,0.01,2640.7,2640.4,4.27654552]
[1729217040859,0.01,2640.6,2640.4,0.48935552]
[1729217041332,0.08558408,2640.6,2640.4,0.48935552]
[1729217041626,0.01,2640.6,2640.4,0.48935552]
[1729217041834,5.43116,2640.5,2640.4,0.48935552]
[1729217042036,6.79008864,2640.5,2640.4,0.48935552]
[1729217042188,6.86567272,2640.5,2640.4,0.48935552]
[1729217042393,7.42175426,2640.5,2640.4,0.48935552]
[1729217042613,6.86567272,2640.5,2640.4,0.48935552]
[1729217042802,6.87567272,2640.5,2640.4,0.48935552]
[1729217043011,10.43175426,2640.5,2640.4,5.52e-06]
[1729217043219,10.35617018,2640.5,2640.4,5.52e-06]
[1729217043904,5.37197,2640.0,2639.9,7.97e-06]
[1729217044272,13.64891644,2640.0,2639.9,7.97e-06]
[1729217044403,13.57333236,2640.0,2639.9,7.97e-06]
[1729217045023,9.26794,2640.0,2639.9,7.97e-06]
[1729217045238,10.55333236,2640.0,2639.9,7.97e-06]
[1729217045419,9.26794,2640.0,2639.9,7.97e-06]
[1729217045587,13.55333236,2640.0,2639.9,7.97e-06]
[1729217046034,14.1094139,2640.0,2639.9,7.97e-06]
[1729217046551,31.6776759,2640.0,2639.9,7.97e-06]
[1729217046699,28.5797159,2640.0,2639.9,7.97e-06]
[1729217047331,28.5797159,2640.0,2639.5,0.51606042]
[1729217047332,5.45035,2639.6,2639.5,1e-08]
[1729217047635,5.45035,2639.6,2639.2,0.1276043]
[1729217047636,3.82888,2639.3,2639.2,0.1276043]
[1729217047932,9.78705643,2639.3,2639.2,4.3e-06]
[1729217048159,9.71147236,2639.3,2639.2,4.3e-06]
[1729217048363,12.71147236,2639.3,2639.2,4.3e-06]
[1729217048818,12.71147236,2639.3,2638.1,0.55611776]
[1729217048819,8.42637,2639.1,2639.0,2.87e-06]
[1729217049421,12.71176236,2639.1,2639.0,2.87e-06]
[1729217049716,12.69176236,2639.1,2639.0,2.87e-06]
[1729217050218,9.69176236,2639.1,2639.0,2.87e-06]
[1729217050647,5.40637,2639.1,2639.0,2.87e-06]
[1729217050933,5.48195407,2639.1,2639.0,2.87e-06]
[1729217051555,0.09558407,2639.1,2639.0,2.87e-06]
[1729217051970,3.88475407,2639.1,2639.0,2.87e-06]
[1729217052574,3.79103,2637.8,2637.7,0.56947021]
[1729217052763,3.79103,2637.8,2637.2,0.58282266]
[1729217052764,5.40155,2637.3,2637.2,0.58282266]
[1729217053061,5.47713407,2637.3,2637.2,0.58282266]
[1729217053235,0.09558407,2637.3,2637.2,0.58282266]
[1729217053721,0.02,2637.3,2637.2,0.58282266]
[1729217054058,0.09558407,2637.3,2637.2,0.58282266]
[1729217054281,0.02,2637.3,2637.2,0.58282266]
[1729217054466,0.09558407,2637.3,2637.2,0.58282266]
[1729217054776,0.02,2637.3,2637.2,0.58282266]
[1729217054940,0.01,2637.3,2637.2,0.80153493]
[1729217057535,0.02,2637.5,2637.2,4.59341493]
[1729217057846,3.79116,2637.8,2637.2,4.59341493]
[1729217057847,0.07558407,2637.8,2637.5,3.79146]
[1729217058180,0.02,2638.1,2637.9,3.7908]
[1729217058181,0.01,2638.1,2637.9,3.7908]
[1729217059054,0.01,2638.1,2637.7,7.58225]
[1729217059244,0.01,2638.1,2637.7,3.79118]
[1729217059440,0.08558407,2638.5,2638.2,3.79046]
[1729217059644,0.01,2638.4,2638.2,5.32783]
[1729217059853,9.4597474,2639.0,2638.5,3.79003]
[1729217059854,0.09558407,2638.9,2638.5,3.79003]
[1729217060089,0.09558407,2638.9,2638.4,0.55]
[1729217060090,0.01,2638.7,2638.4,0.55]
[1729217060284,0.01,2638.7,2638.5,3.79]
[1729217060771,0.08558407,2638.9,2638.7,3.78974]
[1729217060772,0.09558407,2638.9,2638.7,3.78974]
[1729217060926,0.09558407,2638.9,2638.7,3.78972]
[1729217060927,0.01,2638.9,2638.7,3.78972]
[1729217061143,0.01,2638.9,2638.5,0.808028]
[1729217061375,0.01,2638.9,2638.6,3.78987]
[1729217061576,3.8432,2639.0,2638.8,3.78951]
[1729217061773,0.01,2639.3,2638.6,3.78983]
[1729217061774,0.01,2638.9,2638.6,3.78983]
[1729217061931,0.01,2638.9,2638.7,3.78961]
[1729217062328,0.01,2638.9,2638.3,3.79027]
[1729217062569,0.01,2638.9,2638.4,0.55]
[1729217062737,0.08558407,2638.9,2638.4,4.34015]
[1729217062942,0.08558407,2638.9,2638.4,0.55]
[1729217062943,3.87506407,2638.9,2638.4,0.55]
[1729217063275,0.08558407,2638.9,2638.4,4.3401]
[1729217063455,3.87507407,2638.9,2638.4,0.55]
[1729217063630,0.08558407,2638.9,2638.4,5.306936]
[1729217063835,0.01,2638.7,2638.2,5.32785]
[1729217064065,0.08558407,2638.7,2638.2,5.32785]
[1729217064436,3.87533407,2638.7,2638.2,1.5375]
[1729217064772,0.08558407,2638.7,2638.2,5.32791]
[1729217064981,3.79008,2638.5,2637.9,5.45325]
[1729217065320,0.07558407,2638.4,2637.9,5.4532]
[1729217065574,0.07558407,2638.6,2638.1,3.79057]
[1729217065781,0.09558407,2638.7,2638.2,3.79035]
[1729217066081,3.88544407,2638.7,2638.1,3.79057]
[1729217066379,3.80015,2638.5,2638.0,0.55]
[1729217066574,3.86576407,2638.4,2638.0,0.55]
[1729217066731,3.86576407,2638.4,2637.5,4.28539236]
[1729217066732,3.79069,2638.1,2637.6,1.6059]
[1729217066928,3.79064,2638.1,2637.6,1.6059]
[1729217067137,0.07558407,2638.0,2637.6,1.6059]
[1729217067332,3.80099,2637.9,2637.3,5.45228]
[1729217067652,3.80099,2637.9,2637.2,0.58282266]
[1729217067653,3.86671407,2637.8,2637.2,0.58282266]
[1729217067835,3.79136,2637.6,2637.2,0.58282266]
[1729217068034,0.01,2637.7,2637.3,3.79164]
[1729217068331,0.01,2637.7,2637.2,0.58282266]
[1729217068771,0.08558407,2637.8,2637.2,0.58282266]
[1729217068979,0.08558407,2637.8,2637.2,1.02030093]
[1729217069180,0.08558407,2637.8,2637.3,3.79166]
[1729217069494,3.87674407,2637.8,2637.2,4.81211093]
[1729217069771,0.08558407,2637.8,2637.3,3.79169]
[1729217069972,3.86663407,2637.8,2637.2,4.81212093]
[1729217070167,3.87663407,2637.8,2637.3,0.55]
[1729217070340,0.08558407,2637.8,2637.3,0.55]
[1729217070755,0.08558407,2637.8,2637.3,4.34171]
[1729217070947,0.08558407,2637.8,2637.3,0.55]
[1729217071146,0.08558407,2637.8,2637.3,4.34172]
[1729217071376,0.08558407,2637.8,2637.3,0.55]
[1729217071684,3.87671407,2637.8,2637.3,0.55]
[1729217071868,0.08558407,2637.8,2637.3,4.34175]
[1729217072067,0.08558407,2637.8,2637.3,0.55]
[1729217072280,3.87668407,2637.8,2637.3,0.55]